{"text_format":"1","workbook":"xlsx","n_sheets":4,"sheets":["取りまとめシート","男子申込(形・組手共通)","女子申込(形・組手共通) ","振り込み証"],"not_rendered":{"charts":0,"images":0,"macros":1,"external_links":0,"defined_names":4,"comments":2,"pivot_tables":0},"unopened":[],"bounds":{"document_bytes":16777216,"sheet_cells":100000,"rows_first":2000,"rows_last":500,"rows_between":2000,"halvings":0,"cell_chars":16384,"cell_head_chars":4096},"cells_cut":0,"cells_raw":0,"read":"whole","date_system":"1900"}

{"sheet":"取りまとめシート","index":0,"n_rows":31,"n_cols":12,"rows_kept":31,"cut":false,"hidden":false,"merged":[[15,8,22,8],[2,6,2,9],[14,5,14,6],[22,5,22,6],[21,5,21,6],[18,5,18,6],[17,5,17,6],[16,5,16,6],[15,5,15,6],[0,0,0,9],[1,5,1,9],[1,2,1,3],[5,1,5,7],[3,0,4,0]]}
["第９回全九州少年少女空手道選手権大会申込取りまとめ表"]
[null,"申込ファイル送信先",null,null,"ファイルの保存","ファイル名は「全九州少年少女申込【県名】」で保存し送信してください。"]
[null,"申込締切","９月１日（金）※申込締切までに参加費等の送金をお願いいたします。",null,null,null,"このシートには各道場指導者は記入しないでください。"]
["入力必須\n項　　目","県名","個人戦参加費","団体形参加費","広告協賛金額","合計金額\n（送金金額）","送金日・送金予定日","申込責任者","連絡先携帯番号",null,"福岡県"]
[null,null,{"$f":"2000*(J9+J11+J12+J14)","v":0},{"$f":"$K$28+$K$29","v":0},{"$f":"IF(C7=1/3,5000,C7*40000)","v":0},{"$f":"C5+E5","v":0},null,null,null,null,"長崎県"]
[null,"　　　　　　※黄色いセルに入力し各申込シートに入力してください。（自動計算されます。）",null,null,null,null,null,null,null,null,"佐賀県"]
[null,"広告協賛",null,"ページ","広告原稿はメールに添付してください。",null,null,null,null,null,"大分県"]
["県名","種目",null,"小学１年","小学２年","小学３年","小学４年","小学５年","小学６年","合計","熊本県",1]
[null,"男子形",null,null,null,null,null,null,null,{"$f":"SUM(C9:I9)","v":0},"鹿児島県",0.5]
[null,"男子団体形",null,null,null,null,null,null,null,0,"鹿児島県",0.25]
[null,"男子組手",null,null,null,null,null,null,null,0,"沖縄県",0.125]
[null,"女子形",null,null,null,null,null,null,null,0,"宮崎県",0.125]
[null,"女子団体形",null,null,null,null,null,null,null,0,"宮崎県"]
[null,"女子組手",null,null,null,null,null,null,null,0]
["県名","派遣審判員氏名","組手資格","形資格","流派","住所",null,"連絡先電話番号",null,null,null,"全国"]
[null,null,null,null,null,null,null,null,"審判部会で記入してください。",null,null,"地区"]
[null,null,null,null,null,null,null,null,null,null,null,"都道府県"]
[]
[null,null,null,null,null,null,null,null,null,null,"剛柔流"]
[]
[]
[null,null,null,null,null,null,null,null,null,null,"松濤館流"]
[null,null,null,null,null,null,null,null,null,null,"糸東流"]
["県名","役員氏名","役職名","大会出欠",null,null,null,null,null,null,"和道流"]
[null,null,null,null,null,null,null,null,null,null,"諸派"]
[]
[]
[null,null,null,null,null,null,null,null,null,null,{"$f":"IF($J$10=0,0,1)*5000","v":0}]
[null,null,null,null,null,null,null,null,null,null,{"$f":"IF($J$13=0,0,1)*5000","v":0}]
[null,null,null,null,"出席者合計"]
[null,null,null,null,{"$f":"COUNTIF(D25:D31,\"○\")","v":0}]

{"sheet":"男子申込(形・組手共通)","index":1,"n_rows":109,"n_cols":19,"rows_kept":109,"cut":false,"hidden":false,"merged":[[3,0,4,0],[3,8,3,9],[3,2,4,2],[1,17,2,17],[3,5,3,7],[3,4,4,4],[3,3,4,3],[3,1,4,1],[3,10,4,10],[0,0,0,9],[1,0,2,9],[1,16,2,16],[1,18,2,18],[0,15,0,18],[1,15,2,15]]}
["第９回全九州少年少女空手道選手権大会　参加申込書（男子）熊本県連締め切り８月２４日",null,null,null,null,null,null,null,null,null,null,null,null,null,null,"参加人数表（男子）"]
["注意1：名前は左詰めです。姓の前にスペースを入れないで下さい。\n注意2：「氏名」および「ふりがな」の入力は姓と名の間は必ずスペースを入れて下さい。",null,null,null,null,null,null,null,null,null,null,null,null,null,null,"学年","形","団体　　　形","組手"]
[]
["番号","学年","所属県名","氏　　名","ふりがな","参加種目",null,null,"県予選順位",null,null,null,null,null,1,"小学１年",null,"-"]
[null,null,null,null,null,"形","団体形","組手","形","組手",null,null,"〇",null,2,"小学２年",null,"-"]
[1,null,null,null,null,null,null,null,null,null,null,null,"－",null,3,"小学３年",null,"-"]
[2,null,null,null,null,null,null,null,null,null,null,null,null,null,4,"小学４年"]
[3,null,null,null,null,null,null,null,null,null,null,null,null,null,5,"小学５年"]
[4,null,null,null,null,null,null,null,null,null,null,null,null,null,6,"小学６年"]
[5,null,null,null,null,null,null,null,null,null,null,null,{"$f":"IF(F6=\"〇\",VLOOKUP($B6,$O$3:$P$9,2,0),\"\")","v":""},{"$f":"IF(G6=\"〇\",VLOOKUP($B6,$O$3:$P$9,2,0),\"\")","v":""},{"$f":"IF(H6=\"〇\",VLOOKUP($B6,$O$3:$P$9,2,0),\"\")","v":""}]
[6,null,null,null,null,null,null,null,null,null,null,null,{"$f":"IF(F7=\"〇\",VLOOKUP($B7,$O$3:$P$9,2,0),\"\")","v":""},{"$f":"IF(G7=\"〇\",VLOOKUP($B7,$O$3:$P$9,2,0),\"\")","v":""},""]
[7,null,null,null,null,null,null,null,null,null,null,null,"","",""]
[8,null,null,null,null,null,null,null,null,null,null,null,"","",""]
[9,null,null,null,null,null,null,null,null,null,null,null,"","",""]
[10,null,null,null,null,null,null,null,null,null,null,null,"","",""]
[11,null,null,null,null,null,null,null,null,null,null,null,"","",""]
[12,null,null,null,null,null,null,null,null,null,null,null,"","",""]
[13,null,null,null,null,null,null,null,null,null,null,null,"","",""]
[14,null,null,null,null,null,null,null,null,null,null,null,"","",""]
[15,null,null,null,null,null,null,null,null,null,null,null,"","",""]
[16,null,null,null,null,null,null,null,null,null,null,null,"","",""]
[17,null,null,null,null,null,null,null,null,null,null,null,"","",""]
[18,null,null,null,null,null,null,null,null,null,null,null,"","",""]
[19,null,null,null,null,null,null,null,null,null,null,null,"","",""]
[20,null,null,null,null,null,null,null,null,null,null,null,"","",""]
[21,null,null,null,null,null,null,null,null,null,null,null,"","",""]
[22,null,null,null,null,null,null,null,null,null,null,null,"","",""]
[23,null,null,null,null,null,null,null,null,null,null,null,"","",""]
[24,null,null,null,null,null,null,null,null,null,null,null,"","",""]
[25,null,null,null,null,null,null,null,null,null,null,null,"","",""]
[26,null,null,null,null,null,null,null,null,null,null,null,"","",""]
[27,null,null,null,null,null,null,null,null,null,null,null,"","",""]
[28,null,null,null,null,null,null,null,null,null,null,null,"","",""]
[29,null,null,null,null,null,null,null,null,null,null,null,"","",""]
[30,null,null,null,null,null,null,null,null,null,null,null,"","",""]
[31,null,null,null,null,null,null,null,null,null,null,null,"","",""]
[32,null,null,null,null,null,null,null,null,null,null,null,"","",""]
[33,null,null,null,null,null,null,null,null,null,null,null,"","",""]
[34,null,null,null,null,null,null,null,null,null,null,null,"","",""]
[35,null,null,null,null,null,null,null,null,null,null,null,"","",""]
[36,null,null,null,null,null,null,null,null,null,null,null,"","",""]
[37,null,null,null,null,null,null,null,null,null,null,null,{"$f":"IF(F38=\"〇\",VLOOKUP($B38,$O$3:$P$9,2,0),\"\")","v":""},"",{"$f":"IF(H38=\"〇\",VLOOKUP($B38,$O$3:$P$9,2,0),\"\")","v":""}]
[38,null,{"$f":"IF(D43=\"\",\"\",取りまとめシート!$B$5)","v":""},null,null,null,null,null,null,null,null,null,"","",""]
[39,null,{"$f":"IF(D44=\"\",\"\",取りまとめシート!$B$5)","v":""},null,null,null,null,null,null,null,null,null,"","",""]
[40,null,{"$f":"IF(D45=\"\",\"\",取りまとめシート!$B$5)","v":""},null,null,null,null,null,null,null,null,null,"","",""]
[41,null,{"$f":"IF(D46=\"\",\"\",取りまとめシート!$B$5)","v":""},null,null,null,null,null,null,null,null,null,"","",""]
[42,null,{"$f":"IF(D47=\"\",\"\",取りまとめシート!$B$5)","v":""},null,null,null,null,null,null,null,null,null,"","",""]
[43,null,{"$f":"IF(D48=\"\",\"\",取りまとめシート!$B$5)","v":""},null,null,null,null,null,null,null,null,null,"","",""]
[44,null,{"$f":"IF(D49=\"\",\"\",取りまとめシート!$B$5)","v":""},null,null,null,null,null,null,null,null,null,"","",""]
[45,null,{"$f":"IF(D50=\"\",\"\",取りまとめシート!$B$5)","v":""},null,null,null,null,null,null,null,null,null,"","",""]
[46,null,{"$f":"IF(D51=\"\",\"\",取りまとめシート!$B$5)","v":""},null,null,null,null,null,null,null,null,null,"","",""]
[47,null,{"$f":"IF(D52=\"\",\"\",取りまとめシート!$B$5)","v":""},null,null,null,null,null,null,null,null,null,"","",""]
[48,null,{"$f":"IF(D53=\"\",\"\",取りまとめシート!$B$5)","v":""},null,null,null,null,null,null,null,null,null,"","",""]
[49,null,{"$f":"IF(D54=\"\",\"\",取りまとめシート!$B$5)","v":""},null,null,null,null,null,null,null,null,null,"","",""]
[50,null,{"$f":"IF(D55=\"\",\"\",取りまとめシート!$B$5)","v":""},null,null,null,null,null,null,null,null,null,"","",""]
[51,null,{"$f":"IF(D56=\"\",\"\",取りまとめシート!$B$5)","v":""},null,null,null,null,null,null,null,null,null,"","",""]
[52,null,{"$f":"IF(D57=\"\",\"\",取りまとめシート!$B$5)","v":""},null,null,null,null,null,null,null,null,null,"","",""]
[53,null,{"$f":"IF(D58=\"\",\"\",取りまとめシート!$B$5)","v":""},null,null,null,null,null,null,null,null,null,"","",""]
[54,null,{"$f":"IF(D59=\"\",\"\",取りまとめシート!$B$5)","v":""},null,null,null,null,null,null,null,null,null,"","",""]
[55,null,{"$f":"IF(D60=\"\",\"\",取りまとめシート!$B$5)","v":""},null,null,null,null,null,null,null,null,null,"","",""]
[56,null,{"$f":"IF(D61=\"\",\"\",取りまとめシート!$B$5)","v":""},null,null,null,null,null,null,null,null,null,"","",""]
[57,null,{"$f":"IF(D62=\"\",\"\",取りまとめシート!$B$5)","v":""},null,null,null,null,null,null,null,null,null,"","",""]
[58,null,{"$f":"IF(D63=\"\",\"\",取りまとめシート!$B$5)","v":""},null,null,null,null,null,null,null,null,null,"","",""]
[59,null,{"$f":"IF(D64=\"\",\"\",取りまとめシート!$B$5)","v":""},null,null,null,null,null,null,null,null,null,"","",""]
[60,null,{"$f":"IF(D65=\"\",\"\",取りまとめシート!$B$5)","v":""},null,null,null,null,null,null,null,null,null,"","",""]
[61,null,{"$f":"IF(D66=\"\",\"\",取りまとめシート!$B$5)","v":""},null,null,null,null,null,null,null,null,null,"","",""]
[62,null,{"$f":"IF(D67=\"\",\"\",取りまとめシート!$B$5)","v":""},null,null,null,null,null,null,null,null,null,"","",""]
[63,null,{"$f":"IF(D68=\"\",\"\",取りまとめシート!$B$5)","v":""},null,null,null,null,null,null,null,null,null,"","",""]
[64,null,{"$f":"IF(D69=\"\",\"\",取りまとめシート!$B$5)","v":""},null,null,null,null,null,null,null,null,null,"","",""]
[65,null,{"$f":"IF(D70=\"\",\"\",取りまとめシート!$B$5)","v":""},null,null,null,null,null,null,null,null,null,"","",""]
[66,null,{"$f":"IF(D71=\"\",\"\",取りまとめシート!$B$5)","v":""},null,null,null,null,null,null,null,null,null,"","",""]
[67,null,{"$f":"IF(D72=\"\",\"\",取りまとめシート!$B$5)","v":""},null,null,null,null,null,null,null,null,null,"","",""]
[68,null,{"$f":"IF(D73=\"\",\"\",取りまとめシート!$B$5)","v":""},null,null,null,null,null,null,null,null,null,"","",""]
[69,null,{"$f":"IF(D74=\"\",\"\",取りまとめシート!$B$5)","v":""},null,null,null,null,null,null,null,null,null,{"$f":"IF(F70=\"〇\",VLOOKUP($B70,$O$3:$P$9,2,0),\"\")","v":""},"",{"$f":"IF(H70=\"〇\",VLOOKUP($B70,$O$3:$P$9,2,0),\"\")","v":""}]
[70,null,{"$f":"IF(D75=\"\",\"\",取りまとめシート!$B$5)","v":""},null,null,null,null,null,null,null,null,null,"",{"$f":"IF(G71=\"〇\",VLOOKUP($B71,$O$3:$P$9,2,0),\"\")","v":""},""]
[71,null,{"$f":"IF(D76=\"\",\"\",取りまとめシート!$B$5)","v":""},null,null,null,null,null,null,null,null,null,"","",""]
[72,null,{"$f":"IF(D77=\"\",\"\",取りまとめシート!$B$5)","v":""},null,null,null,null,null,null,null,null,null,"","",""]
[73,null,{"$f":"IF(D78=\"\",\"\",取りまとめシート!$B$5)","v":""},null,null,null,null,null,null,null,null,null,"","",""]
[74,null,{"$f":"IF(D79=\"\",\"\",取りまとめシート!$B$5)","v":""},null,null,null,null,null,null,null,null,null,"","",""]
[75,null,{"$f":"IF(D80=\"\",\"\",取りまとめシート!$B$5)","v":""},null,null,null,null,null,null,null,null,null,"","",""]
[76,null,{"$f":"IF(D81=\"\",\"\",取りまとめシート!$B$5)","v":""},null,null,null,null,null,null,null,null,null,"","",""]
[77,null,{"$f":"IF(D82=\"\",\"\",取りまとめシート!$B$5)","v":""},null,null,null,null,null,null,null,null,null,"","",""]
[78,null,{"$f":"IF(D83=\"\",\"\",取りまとめシート!$B$5)","v":""},null,null,null,null,null,null,null,null,null,"","",""]
[79,null,{"$f":"IF(D84=\"\",\"\",取りまとめシート!$B$5)","v":""},null,null,null,null,null,null,null,null,null,"","",""]
[80,null,{"$f":"IF(D85=\"\",\"\",取りまとめシート!$B$5)","v":""},null,null,null,null,null,null,null,null,null,"","",""]
[81,null,{"$f":"IF(D86=\"\",\"\",取りまとめシート!$B$5)","v":""},null,null,null,null,null,null,null,null,null,"","",""]
[82,null,{"$f":"IF(D87=\"\",\"\",取りまとめシート!$B$5)","v":""},null,null,null,null,null,null,null,null,null,"","",""]
[83,null,{"$f":"IF(D88=\"\",\"\",取りまとめシート!$B$5)","v":""},null,null,null,null,null,null,null,null,null,"","",""]
[84,null,{"$f":"IF(D89=\"\",\"\",取りまとめシート!$B$5)","v":""},null,null,null,null,null,null,null,null,null,"","",""]
[85,null,{"$f":"IF(D90=\"\",\"\",取りまとめシート!$B$5)","v":""},null,null,null,null,null,null,null,null,null,"","",""]
[86,null,{"$f":"IF(D91=\"\",\"\",取りまとめシート!$B$5)","v":""},null,null,null,null,null,null,null,null,null,"","",""]
[87,null,{"$f":"IF(D92=\"\",\"\",取りまとめシート!$B$5)","v":""},null,null,null,null,null,null,null,null,null,"","",""]
[88,null,{"$f":"IF(D93=\"\",\"\",取りまとめシート!$B$5)","v":""},null,null,null,null,null,null,null,null,null,"","",""]
[89,null,{"$f":"IF(D94=\"\",\"\",取りまとめシート!$B$5)","v":""},null,null,null,null,null,null,null,null,null,"","",""]
[90,null,{"$f":"IF(D95=\"\",\"\",取りまとめシート!$B$5)","v":""},null,null,null,null,null,null,null,null,null,"","",""]
[91,null,{"$f":"IF(D96=\"\",\"\",取りまとめシート!$B$5)","v":""},null,null,null,null,null,null,null,null,null,"","",""]
[92,null,{"$f":"IF(D97=\"\",\"\",取りまとめシート!$B$5)","v":""},null,null,null,null,null,null,null,null,null,"","",""]
[93,null,{"$f":"IF(D98=\"\",\"\",取りまとめシート!$B$5)","v":""},null,null,null,null,null,null,null,null,null,"","",""]
[94,null,{"$f":"IF(D99=\"\",\"\",取りまとめシート!$B$5)","v":""},null,null,null,null,null,null,null,null,null,"","",""]
[95,null,{"$f":"IF(D100=\"\",\"\",取りまとめシート!$B$5)","v":""},null,null,null,null,null,null,null,null,null,"","",""]
[96,null,{"$f":"IF(D101=\"\",\"\",取りまとめシート!$B$5)","v":""},null,null,null,null,null,null,null,null,null,"","",""]
[97,null,{"$f":"IF(D102=\"\",\"\",取りまとめシート!$B$5)","v":""},null,null,null,null,null,null,null,null,null,"","",""]
[98,null,{"$f":"IF(D103=\"\",\"\",取りまとめシート!$B$5)","v":""},null,null,null,null,null,null,null,null,null,"","",""]
[99,null,{"$f":"IF(D104=\"\",\"\",取りまとめシート!$B$5)","v":""},null,null,null,null,null,null,null,null,null,"","",""]
[100,null,{"$f":"IF(D105=\"\",\"\",取りまとめシート!$B$5)","v":""},null,null,null,null,null,null,null,null,null,"","",""]
[null,null,null,null,null,null,null,null,null,null,null,null,{"$f":"IF(F102=\"〇\",VLOOKUP($B102,$O$3:$P$9,2,0),\"\")","v":""},null,{"$f":"IF(H102=\"〇\",VLOOKUP($B102,$O$3:$P$9,2,0),\"\")","v":""}]
[null,null,null,null,null,null,null,null,null,null,null,null,{"$f":"IF(F103=\"〇\",VLOOKUP($B103,$O$3:$P$9,2,0),\"\")","v":""},null,{"$f":"IF(H103=\"〇\",VLOOKUP($B103,$O$3:$P$9,2,0),\"\")","v":""}]
[null,null,null,null,null,null,null,null,null,null,null,null,{"$f":"IF(F104=\"〇\",VLOOKUP($B104,$O$3:$P$9,2,0),\"\")","v":""},null,{"$f":"IF(H104=\"〇\",VLOOKUP($B104,$O$3:$P$9,2,0),\"\")","v":""}]
[null,null,null,null,null,null,null,null,null,null,null,null,{"$f":"IF(F105=\"〇\",VLOOKUP($B105,$O$3:$P$9,2,0),\"\")","v":""},null,{"$f":"IF(H105=\"〇\",VLOOKUP($B105,$O$3:$P$9,2,0),\"\")","v":""}]

{"sheet":"女子申込(形・組手共通) ","index":2,"n_rows":109,"n_cols":19,"rows_kept":109,"cut":false,"hidden":false,"merged":[[0,0,0,9],[1,0,2,9],[1,15,2,15],[1,16,2,16],[1,18,2,18],[0,15,0,18],[1,17,2,17],[3,10,4,10],[3,0,4,0],[3,1,4,1],[3,2,4,2],[3,3,4,3],[3,5,3,7],[3,8,3,9],[3,4,4,4]]}
["第９回全九州少年少女空手道選手権大会　参加申込書（女子）熊本県連締め切り８月２４日",null,null,null,null,null,null,null,null,null,null,null,null,null,null,"参加人数表（女子）"]
["注意1：名前は左詰めです。姓の前にスペースを入れないで下さい。\n注意2：「氏名」および「ふりがな」の入力は姓と名の間は必ずスペースを入れて下さい。",null,null,null,null,null,null,null,null,null,null,null,null,null,null,"学年","形","団体　　　形","組手"]
[]
["番号","学年","所属県名\n（自動入力）","氏　　名","ふりがな","参加種目",null,null,"県予選順位",null,null,null,null,null,1,"小学１年",null,"-"]
[null,null,null,null,null,"形","団体形","組手","形","組手",null,null,"〇",null,2,"小学２年",null,"-"]
[1,null,null,null,null,null,null,null,null,null,null,null,"－",null,3,"小学３年",null,"-"]
[2,null,null,null,null,null,null,null,null,null,null,null,null,null,4,"小学４年"]
[3,null,null,null,null,null,null,null,null,null,null,null,null,null,5,"小学５年"]
[4,null,null,null,null,null,null,null,null,null,null,null,null,null,6,"小学６年"]
[5,null,null,null,null,null,null,null,null,null,null,null,{"$f":"IF(F6=\"〇\",VLOOKUP($B6,$O$3:$P$9,2,0),\"\")","v":""},{"$f":"IF(G6=\"〇\",VLOOKUP($B6,$O$3:$P$9,2,0),\"\")","v":""},{"$f":"IF(H6=\"〇\",VLOOKUP($B6,$O$3:$P$9,2,0),\"\")","v":""}]
[6,null,null,null,null,null,null,null,null,null,null,null,{"$f":"IF(F7=\"〇\",VLOOKUP($B7,$O$3:$P$9,2,0),\"\")","v":""},{"$f":"IF(G7=\"〇\",VLOOKUP($B7,$O$3:$P$9,2,0),\"\")","v":""},{"$f":"IF(H7=\"〇\",VLOOKUP($B7,$O$3:$P$9,2,0),\"\")","v":""}]
[7,null,null,null,null,null,null,null,null,null,null,null,{"$f":"IF(F8=\"〇\",VLOOKUP($B8,$O$3:$P$9,2,0),\"\")","v":""},{"$f":"IF(G8=\"〇\",VLOOKUP($B8,$O$3:$P$9,2,0),\"\")","v":""},""]
[8,null,null,null,null,null,null,null,null,null,null,null,"","",""]
[9,null,null,null,null,null,null,null,null,null,null,null,"","",""]
[10,null,null,null,null,null,null,null,null,null,null,null,"","",""]
[11,null,null,null,null,null,null,null,null,null,null,null,"","",""]
[12,null,null,null,null,null,null,null,null,null,null,null,"","",""]
[13,null,null,null,null,null,null,null,null,null,null,null,"","",""]
[14,null,null,null,null,null,null,null,null,null,null,null,"","",""]
[15,null,null,null,null,null,null,null,null,null,null,null,"","",""]
[16,null,null,null,null,null,null,null,null,null,null,null,"","",""]
[17,null,null,null,null,null,null,null,null,null,null,null,"","",""]
[18,null,null,null,null,null,null,null,null,null,null,null,"","",""]
[19,null,null,null,null,null,null,null,null,null,null,null,"","",""]
[20,null,null,null,null,null,null,null,null,null,null,null,{"$f":"IF(F21=\"〇\",VLOOKUP($B21,$O$3:$P$9,2,0),\"\")","v":""},"",{"$f":"IF(H21=\"〇\",VLOOKUP($B21,$O$3:$P$9,2,0),\"\")","v":""}]
[21,null,null,null,null,null,null,null,null,null,null,null,"","",""]
[22,null,null,null,null,null,null,null,null,null,null,null,"","",""]
[23,null,null,null,null,null,null,null,null,null,null,null,"","",""]
[24,null,null,null,null,null,null,null,null,null,null,null,"","",""]
[25,null,null,null,null,null,null,null,null,null,null,null,"","",""]
[26,null,null,null,null,null,null,null,null,null,null,null,"","",""]
[27,null,null,null,null,null,null,null,null,null,null,null,"","",""]
[28,null,null,null,null,null,null,null,null,null,null,null,"","",""]
[29,null,null,null,null,null,null,null,null,null,null,null,"","",""]
[30,null,null,null,null,null,null,null,null,null,null,null,"","",""]
[31,null,null,null,null,null,null,null,null,null,null,null,"","",""]
[32,null,null,null,null,null,null,null,null,null,null,null,"","",""]
[33,null,null,null,null,null,null,null,null,null,null,null,"","",""]
[34,null,null,null,null,null,null,null,null,null,null,null,"","",""]
[35,null,null,null,null,null,null,null,null,null,null,null,"","",""]
[36,null,null,null,null,null,null,null,null,null,null,null,"","",""]
[37,null,null,null,null,null,null,null,null,null,null,null,"","",""]
[38,null,null,null,null,null,null,null,null,null,null,null,"","",""]
[39,null,null,null,null,null,null,null,null,null,null,null,{"$f":"IF(F40=\"〇\",VLOOKUP($B40,$O$3:$P$9,2,0),\"\")","v":""},"",{"$f":"IF(H40=\"〇\",VLOOKUP($B40,$O$3:$P$9,2,0),\"\")","v":""}]
[40,null,null,null,null,null,null,null,null,null,null,null,"","",""]
[41,null,null,null,null,null,null,null,null,null,null,null,"","",""]
[42,null,null,null,null,null,null,null,null,null,null,null,"","",""]
[43,null,null,null,null,null,null,null,null,null,null,null,"","",""]
[44,null,null,null,null,null,null,null,null,null,null,null,"","",""]
[45,null,null,null,null,null,null,null,null,null,null,null,"","",""]
[46,null,null,null,null,null,null,null,null,null,null,null,"","",""]
[47,null,null,null,null,null,null,null,null,null,null,null,"","",""]
[48,null,{"$f":"IF(D53=\"\",\"\",取りまとめシート!$B$5)","v":""},null,null,null,null,null,null,null,null,null,"","",""]
[49,null,{"$f":"IF(D54=\"\",\"\",取りまとめシート!$B$5)","v":""},null,null,null,null,null,null,null,null,null,"","",""]
[50,null,{"$f":"IF(D55=\"\",\"\",取りまとめシート!$B$5)","v":""},null,null,null,null,null,null,null,null,null,"","",""]
[51,null,{"$f":"IF(D56=\"\",\"\",取りまとめシート!$B$5)","v":""},null,null,null,null,null,null,null,null,null,"","",""]
[52,null,{"$f":"IF(D57=\"\",\"\",取りまとめシート!$B$5)","v":""},null,null,null,null,null,null,null,null,null,"","",""]
[53,null,{"$f":"IF(D58=\"\",\"\",取りまとめシート!$B$5)","v":""},null,null,null,null,null,null,null,null,null,"","",""]
[54,null,{"$f":"IF(D59=\"\",\"\",取りまとめシート!$B$5)","v":""},null,null,null,null,null,null,null,null,null,"","",""]
[55,null,{"$f":"IF(D60=\"\",\"\",取りまとめシート!$B$5)","v":""},null,null,null,null,null,null,null,null,null,"","",""]
[56,null,{"$f":"IF(D61=\"\",\"\",取りまとめシート!$B$5)","v":""},null,null,null,null,null,null,null,null,null,"","",""]
[57,null,{"$f":"IF(D62=\"\",\"\",取りまとめシート!$B$5)","v":""},null,null,null,null,null,null,null,null,null,"","",""]
[58,null,{"$f":"IF(D63=\"\",\"\",取りまとめシート!$B$5)","v":""},null,null,null,null,null,null,null,null,null,"","",""]
[59,null,{"$f":"IF(D64=\"\",\"\",取りまとめシート!$B$5)","v":""},null,null,null,null,null,null,null,null,null,"","",""]
[60,null,{"$f":"IF(D65=\"\",\"\",取りまとめシート!$B$5)","v":""},null,null,null,null,null,null,null,null,null,"","",""]
[61,null,{"$f":"IF(D66=\"\",\"\",取りまとめシート!$B$5)","v":""},null,null,null,null,null,null,null,null,null,"","",""]
[62,null,{"$f":"IF(D67=\"\",\"\",取りまとめシート!$B$5)","v":""},null,null,null,null,null,null,null,null,null,"","",""]
[63,null,{"$f":"IF(D68=\"\",\"\",取りまとめシート!$B$5)","v":""},null,null,null,null,null,null,null,null,null,"","",""]
[64,null,{"$f":"IF(D69=\"\",\"\",取りまとめシート!$B$5)","v":""},null,null,null,null,null,null,null,null,null,"","",""]
[65,null,{"$f":"IF(D70=\"\",\"\",取りまとめシート!$B$5)","v":""},null,null,null,null,null,null,null,null,null,"","",""]
[66,null,{"$f":"IF(D71=\"\",\"\",取りまとめシート!$B$5)","v":""},null,null,null,null,null,null,null,null,null,"","",""]
[67,null,{"$f":"IF(D72=\"\",\"\",取りまとめシート!$B$5)","v":""},null,null,null,null,null,null,null,null,null,"","",""]
[68,null,{"$f":"IF(D73=\"\",\"\",取りまとめシート!$B$5)","v":""},null,null,null,null,null,null,null,null,null,"","",""]
[69,null,{"$f":"IF(D74=\"\",\"\",取りまとめシート!$B$5)","v":""},null,null,null,null,null,null,null,null,null,"","",{"$f":"IF(H70=\"〇\",VLOOKUP($B70,$O$3:$P$9,2,0),\"\")","v":""}]
[70,null,{"$f":"IF(D75=\"\",\"\",取りまとめシート!$B$5)","v":""},null,null,null,null,null,null,null,null,null,"","",""]
[71,null,{"$f":"IF(D76=\"\",\"\",取りまとめシート!$B$5)","v":""},null,null,null,null,null,null,null,null,null,{"$f":"IF(F72=\"〇\",VLOOKUP($B72,$O$3:$P$9,2,0),\"\")","v":""},{"$f":"IF(G72=\"〇\",VLOOKUP($B72,$O$3:$P$9,2,0),\"\")","v":""},""]
[72,null,{"$f":"IF(D77=\"\",\"\",取りまとめシート!$B$5)","v":""},null,null,null,null,null,null,null,null,null,"","",""]
[73,null,{"$f":"IF(D78=\"\",\"\",取りまとめシート!$B$5)","v":""},null,null,null,null,null,null,null,null,null,"","",""]
[74,null,{"$f":"IF(D79=\"\",\"\",取りまとめシート!$B$5)","v":""},null,null,null,null,null,null,null,null,null,"","",""]
[75,null,{"$f":"IF(D80=\"\",\"\",取りまとめシート!$B$5)","v":""},null,null,null,null,null,null,null,null,null,"","",""]
[76,null,{"$f":"IF(D81=\"\",\"\",取りまとめシート!$B$5)","v":""},null,null,null,null,null,null,null,null,null,"","",""]
[77,null,{"$f":"IF(D82=\"\",\"\",取りまとめシート!$B$5)","v":""},null,null,null,null,null,null,null,null,null,"","",""]
[78,null,{"$f":"IF(D83=\"\",\"\",取りまとめシート!$B$5)","v":""},null,null,null,null,null,null,null,null,null,"","",""]
[79,null,{"$f":"IF(D84=\"\",\"\",取りまとめシート!$B$5)","v":""},null,null,null,null,null,null,null,null,null,"","",""]
[80,null,{"$f":"IF(D85=\"\",\"\",取りまとめシート!$B$5)","v":""},null,null,null,null,null,null,null,null,null,"","",""]
[81,null,{"$f":"IF(D86=\"\",\"\",取りまとめシート!$B$5)","v":""},null,null,null,null,null,null,null,null,null,"","",""]
[82,null,{"$f":"IF(D87=\"\",\"\",取りまとめシート!$B$5)","v":""},null,null,null,null,null,null,null,null,null,"","",""]
[83,null,{"$f":"IF(D88=\"\",\"\",取りまとめシート!$B$5)","v":""},null,null,null,null,null,null,null,null,null,"","",""]
[84,null,{"$f":"IF(D89=\"\",\"\",取りまとめシート!$B$5)","v":""},null,null,null,null,null,null,null,null,null,"","",""]
[85,null,{"$f":"IF(D90=\"\",\"\",取りまとめシート!$B$5)","v":""},null,null,null,null,null,null,null,null,null,"","",""]
[86,null,{"$f":"IF(D91=\"\",\"\",取りまとめシート!$B$5)","v":""},null,null,null,null,null,null,null,null,null,"","",""]
[87,null,{"$f":"IF(D92=\"\",\"\",取りまとめシート!$B$5)","v":""},null,null,null,null,null,null,null,null,null,"","",""]
[88,null,{"$f":"IF(D93=\"\",\"\",取りまとめシート!$B$5)","v":""},null,null,null,null,null,null,null,null,null,"","",""]
[89,null,{"$f":"IF(D94=\"\",\"\",取りまとめシート!$B$5)","v":""},null,null,null,null,null,null,null,null,null,"","",""]
[90,null,{"$f":"IF(D95=\"\",\"\",取りまとめシート!$B$5)","v":""},null,null,null,null,null,null,null,null,null,"","",""]
[91,null,{"$f":"IF(D96=\"\",\"\",取りまとめシート!$B$5)","v":""},null,null,null,null,null,null,null,null,null,"","",""]
[92,null,{"$f":"IF(D97=\"\",\"\",取りまとめシート!$B$5)","v":""},null,null,null,null,null,null,null,null,null,"","",""]
[93,null,{"$f":"IF(D98=\"\",\"\",取りまとめシート!$B$5)","v":""},null,null,null,null,null,null,null,null,null,"","",""]
[94,null,{"$f":"IF(D99=\"\",\"\",取りまとめシート!$B$5)","v":""},null,null,null,null,null,null,null,null,null,"","",""]
[95,null,{"$f":"IF(D100=\"\",\"\",取りまとめシート!$B$5)","v":""},null,null,null,null,null,null,null,null,null,"","",""]
[96,null,{"$f":"IF(D101=\"\",\"\",取りまとめシート!$B$5)","v":""},null,null,null,null,null,null,null,null,null,"","",""]
[97,null,{"$f":"IF(D102=\"\",\"\",取りまとめシート!$B$5)","v":""},null,null,null,null,null,null,null,null,null,"","",""]
[98,null,{"$f":"IF(D103=\"\",\"\",取りまとめシート!$B$5)","v":""},null,null,null,null,null,null,null,null,null,"","",""]
[99,null,{"$f":"IF(D104=\"\",\"\",取りまとめシート!$B$5)","v":""},null,null,null,null,null,null,null,null,null,"","",""]
[100,null,{"$f":"IF(D105=\"\",\"\",取りまとめシート!$B$5)","v":""},null,null,null,null,null,null,null,null,null,"","",""]
[null,null,null,null,null,null,null,null,null,null,null,null,"",null,{"$f":"IF(H102=\"〇\",VLOOKUP($B102,$O$3:$P$9,2,0),\"\")","v":""}]
[null,null,null,null,null,null,null,null,null,null,null,null,"",null,{"$f":"IF(H103=\"〇\",VLOOKUP($B103,$O$3:$P$9,2,0),\"\")","v":""}]
[null,null,null,null,null,null,null,null,null,null,null,null,{"$f":"IF(F104=\"〇\",VLOOKUP($B104,$O$3:$P$9,2,0),\"\")","v":""},null,{"$f":"IF(H104=\"〇\",VLOOKUP($B104,$O$3:$P$9,2,0),\"\")","v":""}]
[null,null,null,null,null,null,null,null,null,null,null,null,{"$f":"IF(F105=\"〇\",VLOOKUP($B105,$O$3:$P$9,2,0),\"\")","v":""},null,{"$f":"IF(H105=\"〇\",VLOOKUP($B105,$O$3:$P$9,2,0),\"\")","v":""}]

{"sheet":"振り込み証","index":3,"n_rows":9,"n_cols":2,"rows_kept":9,"cut":false,"hidden":false,"merged":[[8,0,10,8],[11,0,25,8],[6,1,6,8],[7,1,7,8],[0,0,0,8],[1,0,1,8],[3,1,3,8],[4,1,4,8],[5,1,5,8],[2,1,2,8]]}
["参加費・派遣費振り込み証貼付欄"]
["参加費：個人種目1種目につき３０００円　団体種目１団体につき６０００円　※登録が３人であれば１人２０００円ずつでも可、４人であれば代表道場が振込み　　"]
["派遣費：","種目数を問わず１人２０００円（団体形４人登録の場合を含む）"]
["金融機関","ゆうちょ"]
["名儀","一般社団法人熊本県空手道連盟"]
["種類","当座"]
["店名",199]
["口座番号","０１９３０－８－１６８３３"]
["下に振込証を貼ってください。　　　　　　　　　　　　　　熊本県締め切り　８月２４日（木）"]